bitfinex-derivatives/quotes_ETHF0:USTF0_20250331
["timestamp","ask_amount","ask_price","bid_price","bid_amount"]
[1743407561849,1.11701,1790.7,1790.5,1.81565]
[1743407562047,1.11703,1790.6,1790.5,1.81565]
[1743407562351,0.7106,1790.9,1790.6,1.11703]
[1743407562549,2.55477,1790.9,1790.8,1.1169]
[1743407562850,1.11681,1791.0,1790.9,1.11683]
[1743407563147,3.27537,1791.1,1790.9,1.11683]
[1743407563349,1.11678,1791.0,1790.8,1.11685]
[1743407563648,6.48316,1791.1,1790.9,1.11684]
[1743407563852,5.3664,1791.1,1790.9,1.11684]
[1743407564151,1.11678,1791.0,1790.9,1.11684]
[1743407564346,1.11678,1791.0,1790.8,1.11685]
[1743407565051,1.4948,1791.0,1790.6,7.2458]
[1743407565251,1.11687,1790.9,1790.8,1.11688]
[1743407565552,2.61163,1791.0,1790.8,1.11688]
[1743407565853,2.61163,1791.0,1790.8,1.11686]
[1743407566054,1.11684,1790.9,1790.8,1.11686]
[1743407566853,1.11682,1791.0,1790.9,1.11684]
[1743407567150,3.9285,1791.1,1790.7,2.79236]
[1743407567354,1.11687,1790.9,1790.8,1.11688]
[1743407567552,1.11683,1791.0,1790.9,1.11682]
[1743407567752,1.11684,1790.9,1790.8,1.11685]
[1743407568149,1.11681,1791.0,1790.9,1.11682]
[1743407568343,1.11685,1790.9,1790.8,1.11685]
[1743407568651,0.7065,1791.3,1790.6,7.2458]
[1743407568849,1.82312,1791.3,1791.0,2.7919]
[1743407569153,1.11669,1791.2,1791.1,1.11669]
[1743407569852,3.21242,1791.3,1791.0,2.79195]
[1743407570155,1.11666,1791.2,1791.1,1.11668]
[1743407570543,4.1808,1791.3,1790.9,1.4525]
[1743407570746,1.11674,1791.1,1791.0,1.11674]
[1743407570953,1.11678,1791.0,1790.9,1.11683]
[1743407571658,1.11682,1791.0,1790.9,1.11681]
[1743407572264,2.52182,1791.0,1790.9,1.11681]
[1743407572559,1.11677,1791.1,1791.0,1.11675]
[1743407572853,4.90652,1791.2,1790.8,5.99992]
[1743407573054,1.1168,1791.0,1790.9,1.11677]
[1743407573851,0.00837403,1791.5,1791.0,2.79195]
[1743407574053,1.12487403,1791.5,1791.4,1.11653]
[1743407574553,0.00837403,1791.5,1791.4,1.11653]
[1743407574953,0.00837403,1791.5,1791.4,4.32433]
[1743407576759,1.12484403,1791.5,1791.4,1.11653]
[1743407577156,0.00837403,1791.5,1791.4,4.32433]
[1743407579562,0.00837403,1791.5,1791.4,6.82433]
[1743407579752,0.00837403,1791.5,1791.4,4.32433]
[1743407579957,0.00837403,1791.5,1791.4,8.35633]
[1743407580264,1.12484403,1791.5,1791.4,8.35633]
[1743407580559,1.11653,1791.4,1791.3,1.513]
[1743407580763,1.11663,1791.3,1791.2,1.11659]
[1743407580958,0.00837403,1791.5,1791.4,1.11653]
[1743407581166,0.00837403,1791.5,1791.4,4.32433]
[1743407581861,0.00837403,1791.5,1791.4,5.82093]
[1743407582363,0.00837403,1791.5,1791.4,6.55763]
[1743407584157,0.00837403,1791.5,1791.4,6.25763]
[1743407587276,1.12485403,1791.5,1791.1,7.9848]
[1743407587469,1.12485403,1791.5,1791.4,2.53593]
[1743407588076,1.12484403,1791.5,1791.4,2.53593]
[1743407588368,0.00837403,1791.5,1791.4,2.53593]
[1743407588571,0.00837403,1791.5,1791.4,6.57293]
[1743407588967,1.4204,1791.9,1791.8,1.11628]
[1743407589167,1.11609,1792.2,1792.1,1.11603]
[1743407589368,1.11615,1792.1,1792.0,1.1161]
[1743407589561,1.11616,1792.0,1791.9,2.62856]
[1743407589972,1.1161,1792.1,1792.0,1.11609]
[1743407590178,1.12447403,1792.1,1792.0,1.11609]
[1743407590369,0.00837403,1792.1,1792.0,2.62849]
[1743407590569,1.12446403,1792.1,1792.0,1.5124]
[1743407591873,1.12446403,1792.1,1792.0,2.62856]
[1743407592067,1.11616,1792.0,1791.9,1.11616]
[1743407592372,1.11616,1792.0,1791.9,2.48636]
[1743407592765,1.11616,1792.0,1791.9,1.3702]
[1743407593381,1.11622,1791.9,1791.8,0.00837403]
[1743407594375,1.11622,1791.9,1791.8,1.12465403]
[1743407594567,1.11622,1791.9,1791.8,0.00837403]
[1743407596675,1.11622,1791.9,1791.8,1.12465403]
[1743407596872,1.11622,1791.9,1791.8,0.00837403]
[1743407597072,1.11622,1791.9,1791.8,1.12465403]
[1743407597476,1.11622,1791.9,1791.8,0.00837403]
[1743407598779,1.11622,1791.9,1791.8,1.12465403]
[1743407599072,1.11617,1792.0,1791.9,1.11616]
[1743407599273,1.11617,1792.0,1791.9,2.54936]
[1743407599468,1.11622,1791.9,1791.8,0.00837403]
[1743407599883,1.4378,1792.0,1791.8,0.00837403]
[1743407600182,1.11622,1791.9,1791.8,1.12460403]
[1743407603270,1.11622,1791.9,1791.8,1.12459403]
[1743407603471,1.11622,1791.9,1791.8,1.12465403]
[1743407604078,1.11622,1791.9,1791.8,0.00837403]
[1743407604284,1.11622,1791.9,1791.8,1.12465403]
[1743407605176,1.4378,1792.0,1791.9,1.11622]
[1743407605177,2.55397,1792.0,1791.9,1.11622]
[1743407605373,2.55397,1792.0,1791.9,2.58062]
[1743407606380,1.4378,1792.0,1791.9,2.58062]
[1743407606680,0.69967403,1792.1,1792.0,1.11616]
[1743407606879,0.69967403,1792.1,1792.0,2.58056]
[1743407607085,1.81576403,1792.1,1792.0,2.58056]
[1743407607380,3.32356403,1792.1,1792.0,2.58056]
[1743407607883,3.32356403,1792.1,1792.0,1.4644]
[1743407608074,3.32356403,1792.1,1792.0,2.58056]
[1743407611886,1.11622,1791.9,1791.8,0.00837403]
[1743407612077,1.11622,1791.9,1791.8,1.12465403]
[1743407612274,10.99605403,1792.1,1791.9,1.11616]
[1743407612275,1.11621,1792.0,1791.9,1.11616]
[1743407612480,2.59681,1792.0,1791.9,1.4939]
[1743407612688,1.11622,1791.9,1791.8,0.00837403]
[1743407612888,2.59682,1791.9,1791.8,0.00837403]
[1743407613380,5.80462,1791.9,1791.8,0.00837403]
[1743407613585,1.11647,1791.5,1791.4,1.4837]
[1743407614381,2.54807,1791.5,1791.4,1.4837]
[1743407614587,1.11665,1791.2,1791.1,3.9637]
[1743407614877,1.11661,1791.3,1791.2,1.11663]
[1743407615077,4.6394,1791.5,1791.2,2.79164]
[1743407615282,1.11653,1791.4,1791.2,1.4837]
[1743407615482,1.4316,1791.4,1791.3,1.11656]
[1743407615886,1.11659,1791.3,1791.2,6.57731]
[1743407616081,1.11659,1791.3,1791.2,1.4837]
[1743407616281,1.11665,1791.2,1791.1,7.2058]
[1743407616480,1.4785,1791.2,1791.0,2.51585]
[1743407616692,1.4785,1791.2,1791.0,1.3991]
[1743407617293,2.59519,1791.2,1791.0,1.3991]
[1743407617491,2.59519,1791.2,1791.1,1.11672]
[1743407617691,1.11672,1791.1,1791.0,2.51583]
[1743407618186,1.4785,1791.2,1791.1,1.11672]
[1743407618379,2.59519,1791.2,1791.1,1.11672]
[1743407618584,1.4785,1791.2,1791.1,1.11672]
[1743407618791,2.59515,1791.2,1791.1,1.11672]
[1743407619481,1.11672,1791.1,1791.0,2.51586]
[1743407619890,1.4785,1791.2,1791.0,2.51583]
[1743407620086,1.11672,1791.1,1791.0,2.51583]
[1743407620291,1.4785,1791.2,1791.0,2.51583]
[1743407620487,1.11672,1791.1,1791.0,2.51583]
[1743407620693,1.11672,1791.1,1791.0,2.51588]
[1743407620887,1.4785,1791.2,1791.0,1.3991]
[1743407621287,1.11672,1791.1,1791.0,2.51583]
[1743407624696,1.11684,1790.9,1790.8,0.7171]
[1743407624994,1.11684,1790.9,1790.8,1.4867]
[1743407625492,2.63734,1790.9,1790.8,1.4867]
[1743407626196,5.84514,1790.9,1790.8,1.4867]
[1743407626400,3.37824,1790.9,1790.8,1.4867]
[1743407626787,1.11697,1790.7,1790.6,3.971]
[1743407627095,1.11697,1790.7,1790.6,6.47378]
[1743407627301,7.84577,1790.9,1790.6,5.3568]
[1743407627302,5.05352,1790.9,1790.6,5.3568]
[1743407627496,1.1169,1790.8,1790.7,1.3858]
[1743407627698,2.6374,1790.8,1790.7,1.3858]
[1743407628994,1.11697,1790.7,1790.6,3.971]
[1743407629194,2.50127,1790.7,1790.6,1.4548]
[1743407629401,1.3843,1790.7,1790.3,1.11716]
[1743407629700,1.11715,1790.4,1790.3,6.53396]
[1743407631098,1.11715,1790.4,1790.3,2.57196]
[1743407632101,1.11702,1790.7,1790.6,1.11699]
[1743407632406,5.06078403,1791.0,1790.9,1.11684]
[1743407632598,1.85295403,1791.0,1790.9,1.11684]
[1743407632796,1.11684,1790.9,1790.8,1.11687]
[1743407633803,1.12518403,1791.0,1790.9,1.11684]
[1743407635501,1.11684,1790.9,1790.8,5.07785]
[1743407636007,1.12519403,1791.0,1790.9,1.11684]
[1743407637706,1.11684,1790.9,1790.8,5.07785]
[1743407637902,1.12520403,1791.0,1790.9,1.11684]
[1743407639008,2.79211,1790.9,1790.4,3.2078]
[1743407639197,2.79211,1790.9,1790.5,1.11706]
[1743407639198,1.11704,1790.6,1790.5,1.11706]
[1743407639605,1.11701,1790.7,1790.6,1.11703]
[1743407640206,1.11693,1790.8,1790.7,1.11693]
[1743407640509,1.11693,1790.8,1790.4,7.1798]
[1743407640510,6.74116,1790.9,1790.4,7.1798]
[1743407640807,1.11703,1790.6,1790.5,1.11709]
[1743407641006,1.11703,1790.7,1790.6,1.11701]
[1743407641205,6.74116,1790.9,1790.4,7.1798]
[1743407641411,1.11709,1790.5,1790.4,8.2969]
[1743407641808,1.11709,1790.6,1790.5,1.11709]
[1743407642110,1.11709,1790.5,1790.4,8.2969]
[1743407642906,1.11709,1790.5,1790.4,7.1798]
[1743407643100,1.11709,1790.5,1790.4,3.2078]
[1743407643309,1.11722,1790.3,1790.2,5.08626]
[1743407643901,1.11722,1790.3,1790.2,1.11726]
[1743407645313,0.6978,1790.4,1790.1,6.52511]
[1743407645314,1.11728,1790.2,1790.1,6.52511]
[1743407645608,1.11728,1790.2,1790.1,5.82171]
[1743407645910,1.11734,1790.1,1790.0,5.0]
[1743407646113,3.9549,1790.1,1789.5,3.2078]
[1743407646406,3.9549,1790.1,1789.5,3.974]
[1743407646407,2.79368,1789.9,1789.5,3.974]
[1743407646713,1.11765,1789.6,1789.5,1.11768]
[1743407646921,1.11772,1789.5,1789.4,4.32556]
[1743407647102,1.11772,1789.5,1789.4,3.2078]
[1743407647315,1.11784,1789.3,1789.2,5.07286]
[1743407647815,3.2078,1789.7,1789.2,3.955]
[1743407648009,1.11779,1789.4,1789.3,1.11779]
[1743407648311,1.11784,1789.3,1789.2,5.07288]
[1743407648515,1.11784,1789.3,1789.2,3.2078]
[1743407649006,1.11777,1789.5,1789.4,1.11778]
[1743407649209,2.79414,1789.6,1789.3,1.11783]
[1743407649410,1.11782,1789.4,1789.3,1.5067]
[1743407649909,1.4319,1789.6,1789.3,1.5067]
[1743407650113,1.11778,1789.4,1789.3,1.5067]
[1743407650303,1.11778,1789.4,1789.3,2.62451]
[1743407650501,1.11778,1789.4,1789.3,2.62454]
[1743407650709,1.11778,1789.4,1789.3,1.5067]
[1743407650906,1.11778,1789.4,1789.3,2.62454]
[1743407651110,2.5496,1789.6,1789.3,1.5067]
[1743407651315,3.2078,1789.9,1789.6,2.79414]
[1743407651608,0.00837403,1790.0,1789.6,2.79414]
[1743407651609,0.00837403,1790.0,1789.9,1.11747]
[1743407651808,1.12580403,1790.0,1789.8,1.11748]
[1743407652004,1.38097403,1790.0,1789.8,1.11748]
[1743407652202,1.38097403,1790.0,1789.9,1.11747]
[1743407652406,0.00837403,1790.0,1789.9,4.32527]
[1743407654407,1.51967403,1790.0,1789.9,4.32527]
[1743407654606,1.51967403,1790.0,1789.9,5.80917]
[1743407654818,0.00837403,1790.0,1789.9,5.80917]
[1743407655816,1.49977403,1790.0,1789.9,5.80917]
[1743407656215,0.00837403,1790.0,1789.9,5.80917]
[1743407660011,5.02154,1790.6,1790.2,2.79306]
[1743407660212,1.5157,1790.5,1790.4,1.11713]
[1743407660716,1.11715,1790.4,1790.3,2.61499]
[1743407660919,1.5157,1790.5,1790.3,1.4978]
[1743407661214,1.52407403,1790.5,1790.4,1.11715]
[1743407661408,0.00837403,1790.5,1790.4,1.11715]
[1743407662119,1.41697403,1790.5,1790.4,1.11715]
[1743407664018,0.00837403,1790.5,1790.4,1.11715]
[1743407664222,0.00837403,1790.5,1790.4,1.82625]
[1743407664522,0.00837403,1790.5,1790.4,3.28785]
[1743407667221,4.32452,1791.1,1791.0,1.11678]
[1743407667424,1.11681,1791.0,1790.9,1.11678]
[1743407667723,4.32458,1791.1,1791.0,1.11678]
[1743407668123,3.2078,1791.1,1791.0,1.11678]
[1743407668418,0.00837403,1791.2,1791.1,1.11672]
[1743407668814,1.41267403,1791.2,1791.1,2.56932]
[1743407669222,2.52932403,1791.2,1791.1,2.56932]
[1743407669420,1.41267403,1791.2,1791.1,2.56932]
[1743407669723,2.52932403,1791.2,1791.1,2.56932]
[1743407670218,1.11678,1791.0,1790.9,4.33296403]
[1743407670521,0.7175,1791.1,1791.0,1.11678]
[1743407670714,2.1218,1791.1,1791.0,2.56938]
[1743407672820,3.23852,1791.1,1791.0,2.56938]
[1743407673422,1.11678,1791.0,1790.9,0.00837403]
[1743407673623,5.83268,1791.0,1790.9,0.00837403]
[1743407673824,2.62488,1791.0,1790.9,0.00837403]
[1743407674019,2.62488,1791.0,1790.9,1.12521403]
[1743407674329,5.83268,1791.0,1790.9,1.12521403]
[1743407674628,2.62488,1791.0,1790.9,1.12521403]
[1743407676627,2.62488,1791.0,1790.9,0.00837403]
[1743407676827,5.83268,1791.0,1790.9,0.00837403]
[1743407677128,2.62488,1791.0,1790.9,0.00837403]
[1743407677320,2.62488,1791.0,1790.9,1.44527403]
[1743407677825,2.62488,1791.0,1790.9,0.00837403]
[1743407678031,5.83268,1791.0,1790.9,0.00837403]
[1743407679725,1.11697,1790.7,1790.6,2.55393]
[1743407680728,2.49307,1790.7,1790.6,1.4369]
[1743407680925,1.3761,1790.7,1790.6,2.55393]
[1743407681121,1.1169,1790.9,1790.8,1.11688]
[1743407681328,2.493,1790.9,1790.8,1.11688]
[1743407681532,1.1169,1790.8,1790.7,2.5615]
[1743407682529,2.49299,1790.9,1790.8,1.1169]
[1743407682836,3.21617403,1791.2,1791.1,1.11672]
[1743407683635,1.12502403,1791.2,1791.1,3.22432]
[1743407683833,0.00837403,1791.2,1791.1,3.22432]
[1743407684221,1.12502403,1791.2,1791.1,3.22432]
[1743407684428,1.12502403,1791.2,1791.1,1.4218]
[1743407684738,1.11678,1791.0,1790.9,1.11682]
[1743407684927,1.11684,1790.9,1790.8,3.998]
[1743407685232,1.11696,1790.8,1790.7,1.11692]
[1743407686028,1.11696,1790.8,1790.7,2.53872]
[1743407686733,2.53159,1790.9,1790.8,1.1169]
[1743407686930,1.4147,1790.9,1790.8,2.6358]
[1743407687131,2.53154,1790.9,1790.8,2.6358]
[1743407687333,1.11679,1791.0,1790.9,1.11684]
[1743407687635,2.62909,1791.0,1790.9,1.11684]
[1743407687836,1.1169,1790.9,1790.8,1.11686]
[1743407688024,2.6292,1790.9,1790.8,1.11686]
[1743407688630,1.4585,1791.1,1790.9,1.11678]
[1743407688838,1.11683,1791.0,1790.9,1.11678]
[1743407689042,1.1169,1790.9,1790.8,1.11685]
[1743407692237,2.51002,1791.0,1790.9,1.11684]
[1743407692639,2.50998,1791.0,1790.9,1.11684]
[1743407693541,1.11676,1791.1,1791.0,1.11672]
[1743407693740,2.56226,1791.1,1791.0,1.11672]
[1743407694941,1.11684,1791.0,1790.9,1.11679]
[1743407695135,2.56234,1791.0,1790.9,1.11679]
[1743407695841,1.11676,1791.1,1791.0,1.11672]
[1743407696039,0.00837403,1791.2,1791.1,1.11672]
[1743407696443,1.12502403,1791.2,1791.1,1.11672]
[1743407699544,1.12502403,1791.2,1791.1,2.55902]
[1743407700237,0.00837403,1791.2,1791.1,2.55902]
[1743407700640,1.11657,1791.4,1791.3,1.11659]
[1743407700842,5.58217,1791.6,1791.2,6.51194]
[1743407700843,1.11659,1791.3,1791.2,6.51194]
[1743407701043,2.57619,1791.3,1791.2,6.51194]
[1743407701239,26.8631212,1792.2,1791.5,1.11647]
[1743407701442,1.11631,1791.8,1791.7,1.11631]
[1743407702148,1.11631,1791.8,1791.7,1.5155]
[1743407702552,1.11631,1791.8,1791.7,2.63184]
[1743407703454,1.11631,1791.8,1791.7,1.5155]
[1743407703749,1.11631,1791.8,1791.7,2.63184]
[1743407705553,1.11631,1791.8,1791.7,1.5155]
[1743407706048,1.11631,1791.8,1791.7,2.63184]
[1743407707149,1.11631,1791.8,1791.7,1.5155]
[1743407707359,1.11631,1791.8,1791.7,2.63184]
[1743407707954,1.11634,1791.7,1791.6,0.00837403]
[1743407708149,4.09114,1791.7,1791.6,0.00837403]
[1743407710256,3.2078,1791.8,1791.6,0.00837403]
[1743407710562,1.11633,1791.8,1791.7,1.11631]
[1743407710957,2.49763,1791.8,1791.7,2.56991]
[1743407711263,2.49763,1791.8,1791.7,1.4536]
[1743407711454,2.49763,1791.8,1791.7,2.56994]
[1743407711654,2.49763,1791.8,1791.7,1.4536]
[1743407712155,1.11633,1791.8,1791.7,2.56994]
[1743407712356,1.12460403,1791.9,1791.8,1.11628]
[1743407712558,0.00837403,1791.9,1791.8,2.56988]
[1743407712752,1.12459403,1791.9,1791.8,2.56988]
[1743407713359,0.00837403,1791.9,1791.8,9.75868]
[1743407715459,1.12459403,1791.9,1791.8,9.75868]
[1743407715762,0.00837403,1791.9,1791.8,9.75868]
[1743407718071,1.12459403,1791.9,1791.8,9.75868]
[1743407718268,1.12459403,1791.9,1791.8,6.55088]
[1743407718670,0.00837403,1791.9,1791.8,6.55088]
[1743407718868,1.12459403,1791.9,1791.8,6.55088]
[1743407719368,0.00837403,1791.9,1791.8,6.55088]
[1743407719577,1.12459403,1791.9,1791.8,6.55088]
[1743407719773,0.00837403,1791.9,1791.8,6.55088]
[1743407719974,1.12459403,1791.9,1791.8,6.55088]
[1743407720375,0.00837403,1791.9,1791.8,6.55088]
[1743407720768,0.00837403,1791.9,1791.8,9.75868]
[1743407721273,1.12459403,1791.9,1791.8,9.75868]
[1743407721467,1.12459403,1791.9,1791.8,6.55088]
[1743407721667,1.12459403,1791.9,1791.8,1.4536]
[1743407722071,3.21319403,1791.9,1791.8,1.4536]
[1743407722666,3.21319403,1791.9,1791.8,2.56988]
[1743407723067,1.12459403,1791.9,1791.8,2.56988]
[1743407723372,1.12459403,1791.9,1791.8,1.4536]
[1743407724575,2.49929403,1791.9,1791.8,2.56988]
[1743407725071,0.00837403,1791.9,1791.8,5.77768]
[1743407725976,1.12459403,1791.9,1791.8,5.77768]
[1743407726367,1.12459403,1791.9,1791.8,2.56988]
[1743407726776,1.12459403,1791.9,1791.8,1.4536]
[1743407726978,1.12459403,1791.9,1791.8,2.56988]
[1743407728882,0.00837403,1791.9,1791.8,2.56988]
[1743407729083,1.12459403,1791.9,1791.8,2.56988]
[1743407729873,0.00837403,1791.9,1791.8,2.56988]
[1743407730685,1.12459403,1791.9,1791.8,2.56988]
[1743407730878,0.00837403,1791.9,1791.8,2.56988]
[1743407731281,0.00837403,1791.9,1791.8,5.77768]
[1743407732284,0.00837403,1791.9,1791.8,2.56988]
[1743407732784,0.00837403,1791.9,1791.8,5.77768]
[1743407737686,3.2078,1792.6,1791.8,8.1614]
[1743407737892,2.9972,1793.2,1792.8,1.11566]
[1743407738185,24.7709212,1792.9,1792.8,5.10966]
[1743407738389,23.6553212,1792.9,1792.8,5.10966]
[1743407738688,23.6553212,1792.9,1792.8,6.58756]
[1743407738882,25.1751212,1792.9,1792.8,6.58756]
[1743407739183,23.6553212,1792.9,1792.8,6.58756]
[1743407739377,1.12392403,1793.0,1792.9,1.1156]
[1743407739580,0.00837403,1793.0,1792.9,2.5935]
[1743407739780,4.32288,1793.8,1792.9,7.7441]
[1743407739991,2.59242,1793.9,1793.4,2.78822]
[1743407740186,3.2078,1793.8,1793.5,6.63407]
[1743407740688,1.11516,1793.6,1793.5,5.5189]
[1743407741182,1.11539,1793.3,1793.2,1.11538]
[1743407741384,0.7069,1793.5,1793.1,8.6621]
[1743407741587,1.11539,1793.3,1793.2,1.11539]
[1743407741888,0.715,1793.4,1793.3,1.1153]
[1743407741889,1.11529,1793.4,1793.3,1.1153]
[1743407742191,1.4219,1793.6,1793.2,1.4143]
[1743407742490,1.11528,1793.4,1793.3,1.11531]
[1743407742891,1.11531,1793.4,1793.3,1.11533]
[1743407743294,1.11526,1793.5,1793.4,1.11527]
[1743407743590,2.53706,1793.6,1793.5,1.11522]
[1743407743791,1.11523,1793.5,1793.4,1.11524]
[1743407743993,1.11523,1793.5,1793.4,2.54454]
[1743407744292,1.11523,1793.5,1793.4,2.54455]
[1743407744293,1.11522,1793.5,1793.4,2.54455]
[1743407745184,2.53708,1793.6,1793.5,1.11522]
[1743407745789,2.53706,1793.6,1793.5,1.11522]
[1743407745992,2.53706,1793.6,1793.4,1.4293]
[1743407745993,1.11522,1793.5,1793.4,2.54455]
[1743407746991,2.53711,1793.6,1793.5,1.11522]
[1743407747184,2.53711,1793.6,1793.4,2.54453]
[1743407747185,1.11522,1793.5,1793.4,2.54453]
[1743407747683,1.4219,1793.6,1793.5,1.11522]
[1743407747887,2.53706,1793.6,1793.5,2.62572]
[1743407748087,2.53706,1793.6,1793.5,1.5105]
[1743407748683,3.2078,1794.4,1793.5,7.2183]
[1743407748886,5.97,1794.5,1794.2,1.11474]
[1743407749087,5.99417,1794.6,1794.3,1.11466]
[1743407749088,1.1147,1794.4,1794.3,1.11466]
[1743407749485,1.1147,1794.4,1794.2,1.11474]
[1743407749685,1.1147,1794.4,1794.3,2.62522]
[1743407750396,1.1147,1794.4,1794.3,1.5105]
[1743407750891,1.1147,1794.4,1794.3,2.62522]
[1743407751198,3.2078,1795.6,1794.3,15.03741555]
[1743407751385,3.8943,1795.6,1795.2,1.11413]
[1743407751584,3.8943,1795.6,1795.2,1.11414]
[1743407751585,1.11407,1795.4,1795.2,1.11414]
[1743407751781,1.11408,1795.4,1795.2,2.60883]
[1743407751994,3.8943,1795.6,1795.2,1.4947]
[1743407752191,1.80046,1795.6,1795.4,1.11401]
[1743407752493,0.09695308,1796.5,1795.4,1.11401]
[1743407752494,5.99139,1796.4,1795.8,1.11374]
[1743407752697,1.11371,1796.0,1795.8,4.32154]
[1743407752891,1.11364,1796.1,1795.9,1.11372]
[1743407753087,1.18743675,1796.3,1795.9,1.11372]
[1743407753492,1.11373,1795.9,1795.7,1.11384]
[1743407753888,1.11373,1795.9,1795.3,2.78523]
[1743407753889,5.99229,1795.8,1795.3,4.32188]
[1743407754088,0.7368,1795.7,1795.4,1.11402]
[1743407754290,1.11395,1795.6,1795.4,1.11402]
[1743407754599,1.11394,1795.6,1795.4,1.114]
[1743407754997,1.11398,1795.5,1795.3,5.82916]
[1743407755189,1.11398,1795.5,1795.4,1.11404]
[1743407755385,0.7368,1795.7,1795.3,5.82919]
[1743407755596,3.52149,1795.7,1795.3,3.2078]
[1743407755895,1.1141,1795.3,1795.2,0.00837403]
[1743407759201,1.1141,1795.3,1794.8,1.3707]
[1743407759202,1.11435,1794.9,1794.8,1.3707]
[1743407759804,1.11441,1794.8,1794.7,4.32223]
[1743407760003,2.48421,1794.8,1794.7,4.32223]
[1743407760303,1.3698,1794.8,1794.7,5.69293]
[1743407760804,2.48421,1794.8,1794.7,5.69293]
[1743407761899,2.48421,1794.8,1794.7,2.48518]
[1743407763098,2.48421,1794.8,1794.7,1.3707]
[1743407763611,2.48421,1794.8,1794.7,2.48518]
[1743407763994,1.3698,1794.8,1794.7,2.48518]
[1743407764393,1.3698,1794.8,1794.7,5.69298]
[1743407764906,2.48421,1794.8,1794.7,5.69298]
[1743407765500,2.48421,1794.8,1794.7,4.5785]
[1743407766109,2.48421,1794.8,1794.7,5.69298]
[1743407767011,1.12276402,1794.9,1794.8,1.11441]
[1743407767709,1.11441,1794.8,1794.7,5.69293]
[1743407768210,2.48641,1794.8,1794.7,5.69293]
[1743407768510,2.48641,1794.8,1794.7,4.5785]
[1743407768808,2.43641,1794.8,1794.7,4.5785]
[1743407769203,2.43641,1794.8,1794.7,5.69298]
[1743407769701,1.06441,1794.8,1794.7,5.69298]
[1743407770302,1.12278402,1794.9,1794.8,1.11441]
[1743407771115,1.11441,1794.8,1794.7,5.69293]
[1743407773307,1.12278402,1794.9,1794.8,1.11441]
[1743407773905,2.63278402,1794.9,1794.8,1.11441]
[1743407774101,0.00837402,1794.9,1794.8,5.19841]
[1743407775906,0.00837402,1794.9,1794.8,7.40391]
[1743407776107,1.12272402,1794.9,1794.8,3.31991]
[1743407776301,1.12272402,1794.9,1794.8,2.59011]
[1743407776710,0.00837402,1794.9,1794.8,2.59011]
[1743407777012,1.12272402,1794.9,1794.8,2.59011]
[1743407778213,0.00837402,1794.9,1794.8,2.59011]
[1743407780506,1.12272402,1794.9,1794.8,2.59011]
[1743407780709,0.00837402,1794.9,1794.8,2.59011]
[1743407781009,1.12272402,1794.9,1794.8,2.59011]
[1743407782509,1.12272402,1794.9,1794.6,0.00837403]
[1743407782510,1.11448,1794.7,1794.6,0.00837403]
[1743407783211,1.82358,1794.7,1794.6,0.00837403]
[1743407783516,1.11454,1794.6,1794.5,1.3754]
[1743407783714,2.51564,1794.6,1794.5,1.3754]
[1743407783911,1.11466,1794.4,1794.3,1.11472]
[1743407784213,1.11466,1794.4,1794.3,2.60762]
[1743407784518,1.11466,1794.4,1794.3,1.4929]
[1743407784813,1.11459,1794.6,1794.5,1.1146]
[1743407785616,2.1102,1794.7,1794.4,1.4929]
[1743407785913,1.4011,1794.6,1794.5,1.11457]
[1743407786411,2.78613,1794.8,1794.4,1.4929]
[1743407786618,2.51553,1794.8,1794.7,1.11444]
[1743407786913,2.51557,1794.8,1794.7,1.11448]
[1743407787512,2.51557,1794.8,1794.7,2.57408]
[1743407787711,2.51557,1794.8,1794.7,1.4596]
[1743407789811,1.11454,1794.6,1794.5,4.32238]
[1743407790011,1.11454,1794.6,1794.5,1.11458]
[1743407790211,1.11454,1794.6,1794.5,4.32238]
[1743407790411,1.11453,1794.7,1794.6,1.1145]
[1743407790817,1.11453,1794.7,1794.6,4.3223]
[1743407791011,1.11453,1794.7,1794.6,1.1145]
[1743407791416,1.11446,1794.8,1794.7,1.11448]
[1743407791718,1.11446,1794.8,1794.7,3.24768]
[1743407792213,5.5699,1795.6,1795.2,1.11417]
[1743407792214,4.32195,1795.3,1795.2,1.11417]
[1743407792419,1.11415,1795.3,1795.2,1.11417]
[1743407793118,1.11417,1795.2,1795.1,3.21807]
[1743407793318,1.11417,1795.2,1795.1,6.42587]
[1743407794418,2.59727,1795.2,1795.1,6.42587]
[1743407794724,1.11446,1794.8,1794.7,4.32223]
[1743407794915,1.11446,1794.8,1794.7,1.3893]
[1743407795415,1.11446,1794.8,1794.7,5.71158]
[1743407795618,1.11441,1794.8,1794.7,4.5971]
[1743407795817,1.11441,1794.8,1794.7,5.71154]
[1743407796419,1.11441,1794.8,1794.7,1.3893]
[1743407796815,1.11454,1794.6,1794.5,3.9224]
[1743407797018,1.11454,1794.6,1794.5,4.6328]
[1743407797724,2.60194,1794.6,1794.5,4.6328]
[1743407798424,2.60194,1794.6,1794.5,5.7474]
[1743407801230,2.60194,1794.6,1794.5,1.425]
[1743407801533,2.60194,1794.6,1794.4,0.723]
[1743407801534,4.27386,1794.6,1794.2,4.33091403]
[1743407801728,1.11466,1794.4,1794.3,2.61352]
[1743407801922,1.11466,1794.4,1794.3,5.82132]
[1743407802231,1.11466,1794.4,1794.3,2.61352]
[1743407802232,2.55886,1794.4,1794.3,2.61352]
[1743407802428,2.55886,1794.4,1794.3,4.7066]
[1743407802931,2.55886,1794.4,1794.3,5.82132]
[1743407806135,2.55886,1794.4,1794.3,4.7066]
[1743407806728,1.85961,1794.7,1794.6,1.11454]
[1743407806929,1.85961,1794.7,1794.4,5.57318]
[1743407806930,1.11454,1794.6,1794.5,4.32236]
[1743407807130,1.11454,1794.6,1794.5,5.83916]